Cogmind - Beta 13 @@@ ROGUE MODE // 2024.03.10 @ 15:51:32 Player: Baxter Result: Destroyed by D-53 Grenadier with Mini Grenade Launcher Performance ------------- Evolutions (0) 0 Regions Visited (4) 800 Robots Destroyed (22) 110 Value Destroyed (487) 487 Prototype IDs (23) 460 Alien Tech Used (0) 0 Bonus (300) 300 TOTAL SCORE: 2157 Bonus ------- Aligned with FarCom 300 Cogmind --------- Core Integrity 0/250 Matter 300/300 Energy 250/250 System Corruption 0% Temperature Cool (0) Movement Core (1500) Ox29 Location -9/Mines Parts ------- > --- POWER (1) -------- Ion Engine > --- PROPULSION (2) --- (None) > --- UTILITY (2) ------ Huge Storage Unit > --- WEAPON (2) ------- Flak Gun > --- INVENTORY (25) --- Light Ion Engine Light Ion Engine Light Nuclear Core Light Treads Medium Treads Wheel Wheel Medium Storage Unit Lightpack 2.0 High-capacity Matter Pod (200) Structural Scanner Sensor Array Signal Interpreter Improved Melee Analysis Suite Bomb Drone Bay EM Pulse Gun Light Assault Rifle Light Assault Rifle Light Assault Rifle Peak State ------------ > --- POWER ------------ Ion Engine > --- PROPULSION ------- Compact Wheel Compact Wheel > --- UTILITY ---------- Huge Storage Unit Terrain Scanner > --- WEAPON ----------- Improved EM Pulse Cannon Flak Gun > --- INVENTORY -------- Ion Engine Light Ion Engine Light Ion Engine Light Ion Engine Light Nuclear Core Light Treads Medium Treads Wheel Wheel Compact Wheel Medium Storage Unit Lightpack 2.0 High-capacity Matter Pod Structural Scanner Sensor Array Signal Interpreter Improved Melee Analysis Suite Bomb Drone Bay EM Pulse Gun Light Assault Rifle Light Assault Rifle Light Assault Rifle [Rating: 20] Favorites ----------- Power Light Ion Engine Engine Light Ion Engine Propulsion Compact Wheel Treads Light Treads Wheel Compact Wheel Utility Terrain Scanner Device Terrain Scanner Storage Huge Storage Unit Weapon Light Assault Rifle Energy Gun EM Pulse Gun Energy Cannon Improved EM Pulse Cannon Ballistic Gun Light Assault Rifle Build | -11 -10 -10 -10 -9 ------- Run | Yrd Mat Min Exi Min Slots Evolved . | . . . . . Power . | . . . . . Propulsion . | . . . . . Utility . | . . . . . Weapon . | . . . . . Parts Attached 33 | 7 18 4 . 4 Power 6 | 1 3 1 . 1 Engine 6 | 1 3 1 . 1 Core . | . . . . . Reactor . | . . . . . Propulsion 8 | 2 4 2 . . Treads 3 | 1 1 1 . . Leg . | . . . . . Wheel 5 | 1 3 1 . . Hover . | . . . . . Flight . | . . . . . Utility 5 | 2 3 . . . Device 1 | . 1 . . . Storage 4 | 2 2 . . . Processor . | . . . . . Hackware . | . . . . . Protection . | . . . . . Artifact . | . . . . . Weapon 14 | 2 8 1 . 3 Energy Gun 4 | 1 3 . . . Energy Cannon 1 | . . . . 1 Ballistic Gun 9 | 1 5 1 . 2 Ballistic Cannon . | . . . . . Launcher . | . . . . . Special Weapon . | . . . . . Impact Weapon . | . . . . . Slashing Weapon . | . . . . . Piercing Weapon . | . . . . . Special Melee Weapon . | . . . . . Unidentified Prototypes . | . . . . . Parts Lost 6 | . 1 1 . 4 Power . | . . . . . Propulsion 2 | . . . . 2 Utility 1 | . . . . 1 Weapon 3 | . 1 1 . 1 Highest Loss Streak 4 | . 1 1 . 4 To Critical Strikes . | . . . . . Average Slot Usage (%) 98 | . 98 99 100 98 Engine 13 | . 13 14 14 14 Treads 3 | . 6 . . . Wheel 24 | . 20 27 28 27 Device 13 | . 13 14 14 13 Storage 14 | . 14 14 14 14 Energy Gun 12 | . 12 15 14 . Ballistic Gun 14 | . 15 12 14 22 Naked Turns . | . . . . . Heaviest Build 97 | 16 88 89 89 97 Greatest Support 32 | 20 32 32 32 32 Greatest Overweight (x) 27 | . 27 2 2 5 Average Overweight (x) 1 | . 1 2 2 2 Largest Inventory Capacity 25 | 8 25 25 25 25 Average Capacity 20 | 7 17 25 25 25 Most Carried 25 | 8 14 15 18 25 Average Carried 12 | 5 10 13 16 22 Final Capacity 25 | 8 25 25 25 25 Final Carried 22 | 8 13 15 18 22 Class Distribution -------------------- 92% | Mutant 7% | Skirmisher Dominant Class ---------------- Mutant | -10/Materials Mutant | -10/Mines Mutant | -10/Exiles Skirmisher | -9/Mines Resources | -11 -10 -10 -10 -9 ----------- Run | Yrd Mat Min Exi Min Matter Collected 897 | 272 331 156 . 138 Remotely . | . . . . . Salvage Created 791 | 89 396 133 . 173 Parts 48 | 3 27 9 . 9 Haulers Intercepted 1 | . 1 . . . Recyclers Shooed 4 | . 4 . . . Parts Field Recycled . | . . . . . Retrieved Matter . | . . . . . Parts Self-Destructed . | . . . . . Prevented . | . . . . . Kills | -11 -10 -10 -10 -9 ------- Run | Yrd Mat Min Exi Min Combat Hostiles Destroyed 15 | . 7 5 . 3 Guns 12 | . 6 4 . 2 Cannons 1 | . . . . 1 AOE 2 | . 1 1 . . Classes Destroyed 6 | 1 4 . . 1 Worker 2 | . . . . 2 Hauler 1 | . 1 . . . Recycler 2 | 1 1 . . . Watcher 2 | . 2 . . . Swarmer 5 | . 2 3 . . Grunt 10 | . 5 2 . 3 Best Kill Streak 3 | 1 3 3 . 3 Combat Bots Only 3 | . 3 3 . 3 Max Kills in Single Turn 1 | 1 1 1 . 1 Gunslinging . | . . . . . Exploded 1 | . 1 1 . . Melee . | . . . . . Uniques/NPCs Destroyed . | . . . . . Combat | -11 -10 -10 -10 -9 -------- Run | Yrd Mat Min Exi Min Hostile Shots Fired 94 | . 52 17 . 25 Missed 29 | . 14 6 . 9 Damage Taken 972 | . 518 117 . 337 Core 255 | . 108 58 . 89 Absorbed by Shields . | . . . . . Core Remaining (%) 100 | 100 . . . . Volleys Fired 78 | 9 42 11 . 16 Largest 2 | 1 2 2 . 2 Hottest 97 | 20 80 80 . 97 Shots Fired 141 | 9 79 21 . 32 Gun 136 | 9 79 21 . 27 Cannon 5 | . . . . 5 Launcher . | . . . . . Special . | . . . . . Kinetic 80 | 9 43 1 . 27 Thermal . | . . . . . Explosive . | . . . . . Electromagnetic 61 | . 36 20 . 5 Robot Hit Streak 11 | 5 11 10 . 11 Robot Miss Streak 3 | 2 3 3 . 3 Penetration Max . | . . . . . Secondary Targets 3 | . . 2 . 1 Max Gunslinging Chain 1 | . . 1 . 1 Shots Hit Robots 92 | 7 51 15 . 19 Core Hits 45 | 3 22 8 . 12 Critical Kills . | . . . . . Critical Parts Destroyed . | . . . . . Critical Strikes 1 | . . 1 . . Corrupt 1 | . . 1 . . Melee Attacks . | . . . . . Impact . | . . . . . Slashing . | . . . . . Piercing . | . . . . . Sneak Attacks . | . . . . . Combat Hostiles . | . . . . . Follow-up Attacks . | . . . . . Damage Inflicted 1519 | 59 903 254 . 303 Guns 1094 | 59 627 195 . 213 Cannons 90 | . . . . 90 Explosions 330 | . 271 59 . . Melee . | . . . . . Ramming 5 | . 5 . . . Kinetic 496 | 59 215 9 . 213 Thermal 330 | . 271 59 . . Explosive . | . . . . . Electromagnetic 688 | . 412 186 . 90 Impact . | . . . . . Slashing . | . . . . . Piercing . | . . . . . Highest Corruption . | . . . . . Average Corruption . | . . . . . Corruption Purged . | . . . . . Corruption Blocked . | . . . . . Overload Shots . | . . . . . Overflow Damage 3 | . . . . 3 Projectiles 3 | . . . . 3 Explosions . | . . . . . Melee . | . . . . . Knockbacks . | . . . . . Impact . | . . . . . Kinetic . | . . . . . Secondary . | . . . . . Self-Inflicted Damage 70 | . 70 . . . Shots 2 | . 2 . . . Rammed 1 | . 1 . . . Targets Rammed 1 | . 1 . . . Kicked . | . . . . . Crushed . | . . . . . Highest Temperature 220 | . 220 156 . 216 Average Temperature 70 | . 64 64 . 97 Received Heat Transfer 300 | . 183 48 . 69 Siege Activations . | . . . . . Robots Corrupted . | . . . . . Combat Hostiles . | . . . . . Parts Fried 5 | . 3 2 . . Impact Corruptions . | . . . . . Robots Melted . | . . . . . Combat Hostiles . | . . . . . Parts Melted . | . . . . . Heat Transferred 550 | . 450 100 . . Parts Sabotaged . | . . . . . Parts Stolen . | . . . . . Parts Stripped . | . . . . . Power Chain Reactions 5 | . 4 1 . . Alert | -11 -10 -10 -10 -9 ------- Run | Yrd Mat Min Exi Min Peak Influence 237 | 5 237 133 . 80 Initial 18 | . 3 18 . . Average 51 | 1 56 55 . 32 Maximum Alert Level 1 | . 1 . . . Low Security (%) 97 | 100 94 100 . 100 Level 1 2 | . 5 . . . Level 2 . | . . . . . Level 3 . | . . . . . Level 4 . | . . . . . Level 5 . | . . . . . High Security . | . . . . . Max Security . | . . . . . Squads Dispatched 2 | . 1 . . 1 Investigation 2 | . 1 . . 1 Extermination . | . . . . . Reinforcement . | . . . . . Assault . | . . . . . Garrison . | . . . . . Intercept . | . . . . . Searches Triggered . | . . . . . Construction Impeded . | . . . . . Haulers Reinforced . | . . . . . Active Scanning Responses . | . . . . . Cargo Convoy Interrupts . | . . . . . Stealth | -11 -10 -10 -10 -9 --------- Run | Yrd Mat Min Exi Min Distress Signals 2 | . 2 . . . Communications Jammed . | . . . . . Distress Signals . | . . . . . Times Spotted 31 | . 15 5 . 11 Peak Tracking Total 9 | . 9 3 . 6 Tactical Retreats 2 | . 2 . . . Traps | -11 -10 -10 -10 -9 ------- Run | Yrd Mat Min Exi Min Traps Triggered 2 | . 2 . . . Indirectly . | . . . . . Trap Hack Attempts . | . . . . . Triggered . | . . . . . Disarmed . | . . . . . Reprogrammed . | . . . . . Reused . | . . . . . Traps Extracted . | . . . . . Installed . | . . . . . Triggered . | . . . . . Machines | -11 -10 -10 -10 -9 ---------- Run | Yrd Mat Min Exi Min Machines Disabled 1 | . 1 . . . Max in Single Turn 1 | . 1 . . . Machines Repaired . | . . . . . Machines Dismantled . | . . . . . Machines Sabotaged . | . . . . . Overloaded Fab Kills . | . . . . . Hacking | -11 -10 -10 -10 -9 --------- Run | Yrd Mat Min Exi Min Machines Accessed 9 | . 5 2 1 1 Terminals 6 | . 5 1 . . Fabricators . | . . . . . Repair Stations . | . . . . . Recycling Units . | . . . . . Scanalyzers . | . . . . . Garrison Access . | . . . . . Total Hacks 20 | . 15 3 1 1 Successful 7 | . 4 1 1 1 Failed 13 | . 11 2 . . Catastrophic 1 | . . 1 . . Database Lockouts . | . . . . . Manual 18 | . 15 2 1 . Terminals 17 | . 15 2 . . Fabricators . | . . . . . Repair Stations . | . . . . . Recycling Units . | . . . . . Scanalyzers . | . . . . . Garrison Access . | . . . . . Terminal Hacks 3 | . . 1 1 1 Open Door 2 | . . 1 . 1 Derelict Proto ID Bank 1 | . . . 1 . Fabricator Hacks . | . . . . . Repair Station Hacks . | . . . . . Recycling Unit Hacks . | . . . . . Scanalyzer . | . . . . . Garrison Access Hacks . | . . . . . Unauthorized Hacks 4 | . 4 . . . Terminals 4 | . 4 . . . Botnet 4 | . 4 . . . Fabricators . | . . . . . Repair Stations . | . . . . . Recycling Units . | . . . . . Scanalyzers . | . . . . . Garrison Access . | . . . . . Data Cores Recovered . | . . . . . Used . | . . . . . Hacking Detections 6 | . 5 1 . . Full Trace Events 1 | . 1 . . . Feedback Events . | . . . . . Feedback Blocked . | . . . . . Robot Schematics Acquired . | . . . . . Robots Built . | . . . . . Authchips . | . . . . . Time . | . . . . . Total Robot Build Rating . | . . . . . Part Schematics Acquired . | . . . . . Parts Built . | . . . . . Authchips . | . . . . . Time . | . . . . . Total Part Build Rating . | . . . . . Parts Repaired . | . . . . . Time . | . . . . . Parts Recycled . | . . . . . Recycled Matter . | . . . . . Retrieved Matter . | . . . . . Retrieved Components . | . . . . . Parts Scanalyzed . | . . . . . Part Schematics Acquired . | . . . . . Parts Damaged . | . . . . . Bothacking | -11 -10 -10 -10 -9 ------------ Run | Yrd Mat Min Exi Min Used RIF Installer . | . . . . . Robots Hacked . | . . . . . Non-combat . | . . . . . Combat . | . . . . . Robot Hacks Applied . | . . . . . Relay Couplers Released . | . . . . . Fabnet Peak Effective % . | . . . . . Robots Rewired . | . . . . . Allies Hacked . | . . . . . Hacks Repelled . | . . . . . Allies | -11 -10 -10 -10 -9 -------- Run | Yrd Mat Min Exi Min Total Allies 2 | . . 2 . . Largest Group 2 | . . 2 2 . Highest-Rated Group 46 | . . 46 46 . Highest-Rated Ally 31 | . . 31 31 . Total Orders . | . . . . . Ally Attacks . | . . . . . Total Damage . | . . . . . Kills . | . . . . . Allies Corrupted . | . . . . . Allies Melted . | . . . . . Intel | -11 -10 -10 -10 -9 ------- Run | Yrd Mat Min Exi Min Robot Analysis Total . | . . . . . Derelict Logs Recovered 3 | . . 1 . 2 Drone Launches . | . . . . . Drone Recoveries . | . . . . . Exploration | -11 -10 -10 -10 -9 ------------- Run | Yrd Mat Min Exi Min Turns Passed 2661 | 132 1144 875 300 210 Spaces Moved 1737 | 65 704 631 231 106 Core 6 | 4 2 . . . Treads 263 | 59 204 . . . Legs . | . . . . . Wheels 1468 | 2 498 631 231 106 Hover . | . . . . . Flight . | . . . . . Fastest Speed 50 | 50 100 130 130 130 Average Speed 134 | 151 138 130 130 136 Slowest Speed 1400 | 160 1400 130 130 175 Overloaded Moves . | . . . . . Propulsion Burnouts . | . . . . . Robots Hopped . | . . . . . Cave-ins Triggered . | . . . . . Exploration Rate (%) 57 | 4 92 99 61 30 Regions Visited 4 Branch Regions 3 Pre-discovered Areas 2 | . . 1 . 1 Known Exits Taken . | . . . . . Unknown Exits Taken 4 | 1 1 1 1 . Scrap Searched 1 | . . 1 . . Spaces Dug . | . . . . . Terrain Destroyed 18 | . 13 5 . . Melee . | . . . . . Projectile . | . . . . . AOE 18 | . 13 5 . . Terrain Rammed . | . . . . . Walls Destroyed . | . . . . . Machines Disabled . | . . . . . Actions | -11 -10 -10 -10 -9 --------- Run | Yrd Mat Min Exi Min Total 1929 | 88 803 663 231 144 Wait 34 | . 9 17 . 8 Move 1733 | 64 703 630 230 106 Hop . | . . . . . Pick Up 32 | 8 15 1 1 7 Fast Attach 11 | 7 4 . . . Attach 2 | . 1 1 . . Detach . | . . . . . Swap 20 | . 13 3 . 4 Drop 18 | . 15 . . 3 Fire 78 | 9 42 11 . 16 Melee . | . . . . . Ram 1 | . 1 . . . Kick . | . . . . . Crush . | . . . . . Escape Stasis . | . . . . . Rewire . | . . . . . Trap . | . . . . . Miscellaneous . | . . . . . Route ------- -11/Scrapyard -10/Materials (discovered 4 exits: [*Mat x3] / *Min) -10/Mines (discovered 3 exits: [*Mat x2] / *Exi) -10/Exiles -9/Mines History --------- Turn | Location | Event 15 | -11/Scrapyard | Discovered new exit (range 15) 133 | -11/Scrapyard | Entered Materials 305 | -10/Materials | Build established: Mutant 510 | -10/Materials | Discovered new exit (range 9) 673 | -10/Materials | Discovered new exit (range 9) 996 | -10/Materials | Discovered new exit (range 12) 1124 | -10/Materials | Discovered new exit (range 12) 1277 | -10/Materials | Entered Mines 1361 | -10/Mines | Core integrity fell below 50% 1429 | -10/Mines | Discovered new exit (range 9) 1455 | -10/Mines | Learned 4 Materials zone layouts 1455 | -10/Mines | Discovered new exit (range 4) 1638 | -10/Mines | Learned location of Storage (-8) 1851 | -10/Mines | Found the Drone Emporium 1859 | -10/Mines | Found Prototype Device 2147 | -10/Mines | Deemed a non-threat by the Exiles lab entrance 2147 | -10/Mines | Discovered new exit (range 5) 2152 | -10/Mines | Entered Exiles 2152 | -10/Exiles | Accompanied by 2 allies 2182 | -10/Exiles | Led the pair of lost Derelicts to a safe place 2184 | -10/Exiles | Met 8R-AWN 2206 | -10/Exiles | Met EX-HEX 2243 | -10/Exiles | Met EX-BIN 2259 | -10/Exiles | Aligned with FarCom system 2260 | -10/Exiles | Given EX-Vault access code 2290 | -10/Exiles | Opened EX-Vault 2301 | -10/Exiles | Found Lightpack 2.0 2330 | -10/Exiles | Warned to stay clear of 0b10 Research branches 2367 | -10/Exiles | Met EX-DEC 2436 | -10/Exiles | Discovered new exit (range 14) 2452 | -10/Exiles | Left Exiles lab with Lightpack 2.0 2452 | -10/Exiles | Entered Mines 2512 | -9/Mines | Learned 2 Materials zone layouts 2514 | -9/Mines | Met a Derelict shopkeep closing up shop 2591 | -9/Mines | Core integrity fell below 20% 2634 | -9/Mines | Assembled infested the area 2662 | -9/Mines | Destroyed by D-53 Grenadier with Mini Grenade Launcher Last Messages --------------- 02614_ Acquired 45 matter. 02615_ K-01 Serf collects debris. 02616_ R-06 Scavenger collects Corrupted Lgt. Nuclear Core. 02619_ K-01 Serf collects debris. 02634_ ALERT: Infestation in the mines, dispatching Demolisher response squad. 02637_ K-01 Serf collects debris. 02656_ C-30 ARC bursts open, deploying its payload. 02656_ D-53 Grenadier unfolds itself. 02657_ Com. Wheel destroyed. 02657_ Terrain Scanner destroyed. 02660_ as-81301 destroyed. 02660_ as-73576 destroyed. 02661_ as-64480 destroyed. 02661_ as-79061 destroyed. 02661_ as-75077 destroyed. 02662_ Com. Wheel destroyed. 02662_ Imp. EM Pulse Cannon destroyed. Map ----- +----------------------------------------------------+ | ????????????????????????????????????????? | | ???????????????????????????????????#????? | | ????????????????????????????????????????? | | ????????????????????????????????????????? | | ????????????????????????????????????#???? | | ??????????????????????????????????????? ? | | ?????????????????????????????????????#?#? | | ????????????????????????????????????????? | | ????????????????????????????????????????? | | ??????????????????????????????????#??#### | | ???????????????????????????????#?#?###""# | | ????????????????????????????????????#" | | ????????????????????????????????????#"[ | | ??????????????????#?????????????????#" | | ????????????????????????????????????#" ! | | ???????????????????????????####??#??##""# | | ???????#????????????????? ## ##????#### | | ??????????????????????#?? ####?## | | ???????????????????????? ### = | | ????????????????????????# | | ??????????????????????????## # | | ?????????? ????#??????#????## # | | ??????????????????????#####?## # | | ????????# ############# #### % % %# | | ?????#??# a # ## = %# | | ???????# % @ d u | | ???????# % % %%d | | ???????#### # ## % # | | ??????????# #### # ## " # | | ??????????####????###### #### # | | ??????????#????????????## #??# # | | ????????????????????????## #??# # | | ???????????????????#??#??## ##??# | | ???????????????#??????????# ##???#### | | ??????????????#???????????# ##??????? | | ??????????????????????????# ##???????? | | ????????????????????????#?# ##????????? | | ????????????#???#??????#?######?????????? | | ????????????????????????????????????????? | | ????????????????????????????????????????? | | ????????????????????????????????????????? | | ????????????????????????????????????????? | | ????????????????????????????????????????? | | ????????????????????????????????????????? | | ????????????????????????????????????????? | | | | | | | | | | | +----------------------------------------------------+ Best States ------------- Heat Dissipation 25 Energy Generation 10 Energy Capacity 250 Matter Stores 300 Matter Capacity 300 Sight Range 16 Terrain Scan Range 14 Terrain Scan Density 10 Evasion (%) 40 Recoil Reduction 1 Item Schematics ----------------- None Robot Schematics ------------------ None Fabricated ------------ Nothing Alien Tech Used ----------------- None Achievements -------------- None Challenges ------------ None Game ------ Seed DerelictExplosiveBoregun Manual? 0 Play Time 00:20:23 Cumulative 32.1 hours Start 2024.03.10 @ 15:33:01 End 2024.03.10 @ 15:51:32 Sessions 1 Manual Loads 0 Difficulty Rogue Special Mode None Game No. 32 Rogue 32 Adventurer 0 Explorer 0 Win Type - Total 0 Types 0/0/0/0/0/0/0/0/0 Lore% 22 Gallery% 27 Achievement% 23 Wizard Run 0 Options --------- Layout 1 ASCII 0 Keyboard 0 Movement Numpad Keybinds 0 Fullscreen 2 Font 24/X11 Map View 50x35 Zoom Use 0% Tactical HUD 1 Map Filters NONE Filters NONE Steam 0 RUN: d55f2439-d804-46e3-92d1-dde1dd6927f9